bitfinex/quotes_SOLUSD_20250611
["timestamp","ask_amount","ask_price","bid_price","bid_amount"]
[1749623850974,6.4948,165.59,165.45,4.81820202]
[1749623851149,6.4948,165.59,165.38,7.36834642]
[1749623851150,24.32964886,165.58,165.41,5.52700964]
[1749623851347,18.64964886,165.58,165.44,10.24333059]
[1749623851568,6.4948,165.64,165.56,10.24333059]
[1749623851771,10.24333059,165.62,165.56,10.24333059]
[1749623852056,10.24333059,165.62,165.55,10.24333059]
[1749623852254,10.24333059,165.62,165.58,26.0]
[1749623852462,10.24333059,165.62,165.55,10.24333059]
[1749623852764,10.24333059,165.62,165.58,26.0]
[1749623853271,17.09797846,165.62,165.59,26.0]
[1749623853589,17.09797846,165.63,165.59,26.0]
[1749623854863,17.09797846,165.63,165.59,25.79852]
[1749623856792,17.09797846,165.62,165.59,26.0]
[1749623857781,17.09797846,165.63,165.59,26.0]
[1749623857988,17.09797846,165.65,165.62,26.0]
[1749623858187,17.09797846,165.63,165.62,26.0]
[1749623858361,17.09797846,165.63,165.56,26.0]
[1749623858362,35.74762732,165.63,165.56,26.0]
[1749623858567,17.09797846,165.59,165.56,26.0]
[1749623858970,17.09797846,165.6,165.54,43.09797846]
[1749623859178,17.09797846,165.59,165.51,24.142]
[1749623859387,17.09797846,165.59,165.53,17.09797846]
[1749623859683,17.09797846,165.59,165.56,26.0]
[1749623861302,17.09797846,165.59,165.53,20.09478299]
[1749623861303,17.09797846,165.59,165.54,43.09797846]
[1749623861464,17.09797846,165.6,165.54,43.09797846]
[1749623863790,17.09797846,165.62,165.56,17.09797846]
[1749623863993,17.09797846,165.62,165.59,26.0]
[1749623864566,17.09797846,165.62,165.55,26.0]
[1749623864784,17.09797846,165.61,165.59,26.0]
[1749623867798,17.09797846,165.63,165.6,26.0]
[1749623867977,17.09797846,165.62,165.6,26.0]
[1749623868361,17.09797846,165.63,165.61,26.0]
[1749623868564,17.09797846,165.62,165.61,26.0]
[1749623868972,17.09797846,165.62,165.6,26.0]
[1749623870998,17.09797846,165.63,165.6,26.0]
[1749623875310,17.09797846,165.63,165.58,36.25677058]
[1749623875311,10.25677058,165.63,165.58,36.25677058]
[1749623875899,10.25677058,165.64,165.59,10.25677058]
[1749623876600,5.68,165.69,165.6,10.25677058]
[1749623876601,10.25677058,165.65,165.6,10.25677058]
[1749623877693,10.25677058,165.64,165.62,26.0]
[1749623878096,10.25677058,165.63,165.54,1.599]
[1749623878298,10.25677058,165.6,165.56,26.0]
[1749623878496,10.25677058,165.6,165.57,26.0]
[1749623880077,10.25677058,165.58,165.53,9.03912051]
[1749623880299,18.64964886,165.64,165.53,9.03912051]
[1749623880300,10.25677058,165.55,165.53,3.00712051]
[1749623880477,10.25677058,165.55,165.5,11.77527058]
[1749623880779,10.25677058,165.55,165.53,26.0]
[1749623880995,10.25677058,165.55,165.5,11.77527058]
[1749623881301,10.25677058,165.54,165.49,28.36677058]
[1749623881484,10.25677058,165.54,165.47,18.64964886]
[1749623881900,5.68,165.59,165.46,1.5185]
[1749623881901,10.25677058,165.52,165.46,11.77527058]
[1749623882081,6.3082,165.57,165.46,13.22256543]
[1749623882409,10.25677058,165.53,165.51,26.0]
[1749623883402,6.172,165.63,165.56,26.0]
[1749623883697,10.25677058,165.61,165.56,26.0]
[1749623883903,10.25677058,165.61,165.56,36.25677058]
[1749623884099,10.25677058,165.59,165.56,26.0]
[1749623884598,10.25677058,165.6,165.56,26.0]
[1749623885297,6.172,165.63,165.55,17.10093447]
[1749623885477,17.10093447,165.6,165.55,17.10093447]
[1749623885678,17.10093447,165.6,165.55,35.75058333]
[1749623886715,17.10093447,165.6,165.56,17.10093447]
[1749623886918,17.10093447,165.58,165.51,1.6178]
[1749623887210,6.172,165.63,165.51,17.10093447]
[1749623887211,17.10093447,165.56,165.51,17.10093447]
[1749623888400,17.10093447,165.57,165.52,17.10093447]
[1749623889505,6.172,165.63,165.49,18.64964886]
[1749623889506,17.10093447,165.58,165.53,17.10093447]
[1749623889689,17.10093447,165.6,165.55,17.10093447]
[1749623890304,6.172,165.63,165.55,17.10093447]
[1749623890305,6.172,165.63,165.56,17.10093447]
[1749623890532,17.10093447,165.61,165.56,17.10093447]
[1749623892005,17.10093447,165.59,165.55,26.0]
[1749623892998,17.10093447,165.6,165.56,26.0]
[1749623893598,17.10093447,165.59,165.54,43.10093447]
[1749623894409,17.10093447,165.6,165.55,17.10093447]
[1749623895209,17.10093447,165.56,165.51,18.64964886]
[1749623895509,17.10093447,165.6,165.51,26.0]
[1749623895729,17.10093447,165.54,165.49,17.10093447]
[1749623895895,17.10093447,165.54,165.5,18.64964886]
[1749623898077,17.10093447,165.56,165.51,17.10093447]
[1749623899019,17.10093447,165.55,165.5,35.75058333]
[1749623900315,17.10093447,165.6,165.49,26.0]
[1749623900316,17.10093447,165.52,165.49,26.0]
[1749623900817,5.76,165.55,165.49,26.0]
[1749623901003,17.10093447,165.52,165.49,26.0]
[1749623903010,5.76,165.55,165.49,26.0]
[1749623903208,17.10093447,165.52,165.49,26.0]
[1749623903530,17.10093447,165.53,165.49,26.0]
[1749623905125,5.76,165.55,165.49,43.10093447]
[1749623905126,17.10093447,165.54,165.49,43.10093447]
[1749623906220,17.10093447,165.54,165.49,26.0]
[1749623906522,43.10093447,165.54,165.49,17.10093447]
[1749623907228,43.10093447,165.54,165.49,10.26944771]
[1749623907229,36.26944771,165.54,165.49,10.26944771]
[1749623907524,10.26944771,165.53,165.48,10.26944771]
[1749623907828,10.26944771,165.49,165.44,28.91909657]
[1749623908004,26.0,165.52,165.44,10.26944771]
[1749623908208,36.26944771,165.49,165.44,10.26944771]
[1749623908706,26.0,165.49,165.45,10.26944771]
[1749623909107,26.0,165.49,165.47,10.26944771]
[1749623909298,43.11842942,165.52,165.47,17.11842942]
[1749623910726,26.0,165.52,165.49,17.11842942]
[1749623910928,26.0,165.52,165.44,18.64964886]
[1749623911232,26.0,165.52,165.49,17.11842942]
[1749623912429,43.11842942,165.54,165.49,17.11842942]
[1749623913831,26.0,165.54,165.49,17.11842942]
[1749623914130,43.11842942,165.54,165.49,17.11842942]
[1749623915227,26.0,165.54,165.51,17.11842942]
[1749623915625,26.0,165.54,165.52,17.11842942]
[1749623917928,5.76,165.55,165.51,17.11842942]
[1749623918238,5.76,165.55,165.53,17.11842942]
[1749623918834,5.76,165.55,165.45,18.64964886]
[1749623919134,5.76,165.55,165.54,17.11842942]
[1749623920838,5.76,165.55,165.54,35.76807828]
[1749623921928,26.0,165.59,165.54,35.76807828]
[1749623922137,22.81842942,165.63,165.58,17.11842942]
[1749623922436,22.81842942,165.63,165.6,17.11842942]
[1749623922437,26.0,165.61,165.6,17.11842942]
[1749623922615,5.7,165.63,165.6,17.11842942]
[1749623922938,5.7,165.63,165.61,17.11842942]
[1749623923317,5.7,165.63,165.62,17.11842942]
[1749623925017,5.7,165.63,165.61,17.11842942]
[1749623925339,5.7,165.63,165.6,17.11842942]
[1749623926038,5.7,165.63,165.62,17.11842942]
[1749623926337,7.2364,165.71,165.63,18.64964886]
[1749623926540,17.11842942,165.7,165.65,17.11842942]
[1749623926715,26.0,165.69,165.65,17.11842942]
[1749623928134,43.11842942,165.69,165.64,17.11842942]
[1749623928439,26.0,165.68,165.64,17.11842942]
[1749623929324,26.0,165.68,165.64,10.25003721]
[1749623930238,26.0,165.68,165.61,18.64964886]
[1749623930424,26.0,165.68,165.64,10.25003721]
[1749623933046,26.0,165.67,165.65,10.25003721]
[1749623933246,5.7,165.71,165.66,10.25003721]
[1749623933423,5.7,165.73,165.69,10.25003721]
[1749623933629,5.7,165.73,165.71,10.25003721]
[1749623933948,5.7,165.73,165.69,10.25003721]
[1749623934748,5.7,165.73,165.72,10.25003721]
[1749623935343,5.7,165.73,165.72,17.06693294]
[1749623937337,5.7,165.73,165.71,17.06693294]
[1749623939323,5.7,165.73,165.66,18.64964886]
[1749623939522,5.7,165.73,165.7,17.06693294]
[1749623940247,5.7,165.73,165.71,17.06693294]
[1749623941240,5.7,165.73,165.72,17.06693294]
[1749623941444,5.7,165.73,165.71,17.06693294]
[1749623942849,5.7,165.73,165.66,18.64964886]
[1749623942850,26.0,165.71,165.66,18.64964886]
[1749623943150,5.7,165.73,165.65,4.67086411]
[1749623943151,43.06693294,165.7,165.65,1.5837]
[1749623943352,43.06693294,165.7,165.65,18.65063294]
[1749623943554,26.0,165.7,165.66,17.06693294]
[1749623943761,26.0,165.7,165.65,1.5837]
[1749623943762,26.0,165.7,165.67,18.64964886]
[1749623943926,26.0,165.7,165.69,35.7165818]
[1749623945852,26.0,165.7,165.69,18.64964886]
[1749623946038,26.0,165.7,165.69,35.7165818]
[1749623946555,5.7,165.73,165.69,35.7165818]
[1749623946857,5.7,165.73,165.7,17.06693294]
[1749623946858,26.0,165.71,165.7,17.06693294]
[1749623947036,26.0,165.71,165.68,18.64964886]
[1749623947037,26.0,165.7,165.68,17.06693294]
[1749623949528,26.0,165.69,165.67,17.06693294]
[1749623950457,26.0,165.69,165.68,17.06693294]
[1749623950836,26.0,165.69,165.66,18.64964886]
[1749623951033,43.06693294,165.7,165.63,18.64964886]
[1749623951254,26.0,165.7,165.65,17.06693294]
[1749623951555,26.0,165.7,165.66,17.06693294]
[1749623955666,43.06693294,165.7,165.65,17.06693294]
[1749623956658,43.06693294,165.7,165.63,18.64964886]
[1749623956659,26.0,165.7,165.66,17.06693294]
[1749623956965,26.0,165.68,165.61,10.86834342]
[1749623957145,6.6491,165.72,165.61,1.6459]
[1749623957146,26.0,165.62,165.61,1.6459]
[1749623957662,26.0,165.62,165.61,11.90093076]
[1749623958042,26.0,165.64,165.61,11.90093076]
[1749623958244,26.0,165.62,165.61,1.6459]
[1749623958659,26.0,165.62,165.61,11.90093076]
[1749623959444,10.25503076,165.66,165.61,11.90093076]
[1749623959650,26.0,165.62,165.6,10.25503076]
[1749623959868,26.0,165.61,165.56,6.2138]
[1749623960166,26.0,165.61,165.57,10.25503076]
[1749623960562,10.25503076,165.63,165.58,10.25503076]
[1749623961038,10.25503076,165.64,165.59,10.25503076]
[1749623961237,26.0,165.62,165.59,10.25503076]
[1749623961463,26.0,165.62,165.61,10.25503076]
[1749623962560,26.0,165.64,165.61,10.25503076]
[1749623962764,26.0,165.64,165.62,10.25503076]
[1749623962956,26.0,165.64,165.61,10.25503076]
[1749623964256,26.0,165.64,165.6,10.25503076]
[1749623964563,26.0,165.64,165.59,10.25503076]
[1749623964564,26.0,165.62,165.59,10.25503076]
[1749623965066,26.0,165.62,165.6,10.25503076]
[1749623966866,26.0,165.63,165.59,10.25503076]
[1749623967561,26.0,165.62,165.6,10.25503076]
[1749623969756,26.0,165.63,165.6,10.25503076]
[1749623970971,10.25503076,165.65,165.6,10.25503076]
[1749623971172,26.0,165.62,165.6,10.25503076]
[1749623971776,26.0,165.62,165.61,10.25503076]
[1749623971960,10.25503076,165.66,165.61,10.25503076]
[1749623972275,26.0,165.63,165.61,10.25503076]
[1749623972460,26.0,165.63,165.57,18.64964886]
[1749623972662,26.0,165.63,165.61,10.25503076]
[1749623972978,27.5206,165.68,165.61,10.25503076]
[1749623973163,26.0,165.64,165.61,10.25503076]
[1749623973555,26.0,165.64,165.6,10.25503076]
[1749623973774,10.25503076,165.62,165.57,108.54964886]
[1749623973962,26.0,165.65,165.58,10.25503076]
[1749623974163,10.25503076,165.62,165.58,10.25503076]
[1749623974963,10.25503076,165.62,165.51,6.1415]
[1749623974964,36.25503076,165.59,165.51,6.1415]
[1749623975154,5.58,165.62,165.5,1.6521]
[1749623975155,10.25503076,165.57,165.52,28.90467962]
[1749623977050,5.58,165.63,165.56,10.25503076]
[1749623977270,15.83503076,165.63,165.58,10.25503076]
[1749623977775,26.0,165.6,165.58,10.25503076]
[1749623978755,26.0,165.6,165.59,10.25503076]
[1749623978951,5.58,165.63,165.59,10.25503076]
[1749623979157,5.58,165.63,165.61,10.25503076]
[1749623979673,31.58,165.63,165.61,10.25503076]
[1749623981065,31.58,165.63,165.62,10.25503076]
[1749623983683,5.58,165.63,165.62,10.25503076]
[1749623985167,5.58,165.63,165.62,28.90467962]
[1749623985365,5.58,165.71,165.63,18.64964886]
[1749623985553,5.58,165.71,165.68,10.25503076]
[1749623985754,5.58,165.71,165.69,10.25503076]
[1749623986163,26.0,165.69,165.68,10.25503076]
[1749623987357,26.0,165.68,165.61,18.64964886]
[1749623987575,26.0,165.68,165.64,10.25503076]
[1749623987788,36.25503076,165.68,165.63,10.25503076]
[1749623989482,43.08524105,165.68,165.63,17.08524105]
[1749623989678,17.08524105,165.67,165.62,17.08524105]
[1749623989860,26.0,165.68,165.63,17.08524105]
[1749623990064,43.08524105,165.68,165.63,17.08524105]
[1749623991182,26.0,165.64,165.62,17.08524105]
[1749623991689,43.08524105,165.68,165.63,17.08524105]
[1749623993291,26.0,165.68,165.59,18.64964886]
[1749623993502,43.08524105,165.68,165.63,17.08524105]
[1749623996178,26.0,165.66,165.64,17.08524105]
[1749623997805,26.0,165.66,165.63,17.08524105]
[1749624000088,17.08524105,165.68,165.63,17.08524105]
[1749624000298,26.0,165.65,165.6,35.73488991]
[1749624000493,17.08524105,165.7,165.64,35.73488991]
[1749624000697,22.66524105,165.71,165.66,17.08524105]
[1749624000898,26.0,165.67,165.64,18.64964886]
[1749624001100,26.0,165.67,165.65,17.08524105]
[1749624002399,26.0,165.67,165.64,35.73488991]
[1749624005001,26.0,165.67,165.65,17.08524105]
[1749624007591,5.58,165.71,165.66,35.73488991]
[1749624007797,5.58,165.71,165.69,17.08524105]
[1749624008396,5.58,165.71,165.7,17.08524105]
[1749624008785,5.58,165.71,165.69,17.08524105]
[1749624011287,5.58,165.71,165.69,10.24372776]
[1749624017218,5.58,165.71,165.7,10.24372776]
[1749624022006,5.58,165.71,165.66,108.54964886]
[1749624022404,26.0,165.69,165.66,100.14372776]
[1749624022703,26.0,165.69,165.66,10.24372776]
[1749624022906,26.0,165.69,165.67,10.24372776]
[1749624023927,26.0,165.69,165.66,10.24372776]
[1749624026215,26.0,165.69,165.67,10.24372776]
[1749624026729,26.0,165.69,165.68,10.24372776]
[1749624026930,5.58,165.71,165.68,10.24372776]
[1749624027237,5.58,165.71,165.7,10.24372776]
[1749624028828,5.58,165.71,165.69,10.24372776]
[1749624029513,5.58,165.71,165.67,10.24372776]
[1749624029712,5.58,165.71,165.68,10.24372776]
[1749624031206,5.58,165.71,165.7,10.24372776]
[1749624032613,5.58,165.71,165.68,10.24372776]
[1749624032818,5.58,165.71,165.7,10.24372776]
[1749624036912,10.24372776,165.75,165.7,10.24372776]
[1749624040615,5.44,165.78,165.7,10.24372776]
[1749624040616,10.24372776,165.77,165.72,10.24372776]
[1749624040833,10.24372776,165.74,165.7,44.64964886]
[1749624041717,10.24372776,165.75,165.7,54.89337662]
[1749624042032,10.24372776,165.74,165.69,18.64964886]
[1749624043311,10.24372776,165.74,165.69,28.89337662]
[1749624043734,5.44,165.78,165.69,28.89337662]
[1749624044018,10.24372776,165.74,165.69,28.89337662]
[1749624044630,5.44,165.78,165.7,10.24372776]
[1749624044936,10.24372776,165.76,165.68,18.64964886]
[1749624045133,5.44,165.78,165.68,18.64964886]
[1749624045134,15.68372776,165.78,165.73,10.24372776]
[1749624045650,5.44,165.78,165.74,10.24372776]
[1749624046142,5.44,165.78,165.75,10.24372776]
[1749624047220,5.44,165.78,165.74,10.24372776]
[1749624047427,15.68372776,165.78,165.74,18.64964886]
[1749624048186,15.68372776,165.78,165.73,10.24372776]
[1749624048631,10.24372776,165.74,165.71,89.9]
[1749624048829,10.24372776,165.73,165.69,18.64964886]
[1749624049824,10.24372776,165.74,165.69,28.89337662]
[1749624050418,10.24372776,165.74,165.69,18.64964886]
[1749624051317,10.24372776,165.74,165.68,37.77002776]
[1749624051318,10.24372776,165.72,165.68,26.0]
[1749624051636,10.24372776,165.72,165.67,10.24372776]
[1749624054026,26.0,165.75,165.69,10.24372776]
[1749624054226,7.7273,165.77,165.66,18.64964886]
[1749624054227,10.24372776,165.74,165.7,10.24372776]
[1749624055118,10.24372776,165.74,165.66,18.64964886]
[1749624055322,33.7273,165.77,165.7,10.24372776]
[1749624055532,10.24372776,165.74,165.7,10.24372776]
[1749624055842,10.24372776,165.75,165.7,10.24372776]
[1749624056043,26.0,165.77,165.71,10.24372776]
[1749624056044,10.24372776,165.76,165.71,10.24372776]
[1749624056244,5.44,165.78,165.72,18.64964886]
[1749624056424,10.24372776,165.77,165.73,10.24372776]
[1749624056619,10.24372776,165.77,165.71,18.64964886]
[1749624056934,10.24372776,165.77,165.72,10.24372776]
[1749624057248,10.24372776,165.77,165.73,10.24372776]
[1749624057542,5.44,165.78,165.75,10.24372776]
[1749624057744,5.44,165.78,165.77,28.89337662]
[1749624060147,5.44,165.78,165.7,91.4404]
[1749624060148,15.68372776,165.78,165.71,18.64964886]
[1749624060446,15.68372776,165.78,165.72,10.24372776]
[1749624060447,5.44,165.78,165.72,10.24372776]
[1749624060643,10.24372776,165.77,165.73,10.24372776]
[1749624060845,10.24372776,165.77,165.72,10.24372776]
[1749624061447,10.24372776,165.77,165.71,18.64964886]
[1749624061448,10.24372776,165.77,165.73,10.24372776]
[1749624061830,10.24372776,165.77,165.71,18.64964886]
[1749624062037,10.24372776,165.77,165.73,10.24372776]
[1749624062550,26.0,165.83,165.75,10.24372776]
[1749624062744,10.24372776,165.8,165.75,10.24372776]
[1749624062943,15.68372776,165.82,165.77,10.24372776]
[1749624063139,5.44,165.82,165.79,10.24372776]
[1749624063739,5.44,165.82,165.8,10.24372776]
[1749624064442,5.44,165.82,165.78,18.64964886]
[1749624064643,5.44,165.82,165.8,18.64964886]
[1749624065347,5.44,165.82,165.78,18.64964886]
[1749624065535,5.44,165.82,165.8,18.64964886]
[1749624065858,5.44,165.82,165.81,28.89337662]
[1749624067055,5.44,165.82,165.77,1.6113]
[1749624067237,5.44,165.82,165.79,18.64964886]
[1749624067743,5.44,165.82,165.79,10.24372776]
[1749624068232,5.44,165.82,165.78,18.64964886]
[1749624068233,5.44,165.82,165.78,28.89337662]
[1749624069443,15.68372776,165.82,165.78,26.0]
[1749624069636,5.44,165.82,165.74,18.64964886]
[1749624069846,10.24372776,165.78,165.74,18.64964886]
[1749624071041,10.24372776,165.77,165.72,37.85822776]
[1749624071240,13.5188,165.82,165.71,18.64964886]
[1749624071439,10.24372776,165.75,165.71,18.64964886]
[1749624071854,10.24372776,165.73,165.69,10.24372776]
[1749624072140,10.24372776,165.73,165.68,1.5501]
[1749624072341,10.24372776,165.72,165.69,18.64964886]
[1749624073841,26.0,165.79,165.7,10.24372776]
[1749624074044,10.24372776,165.75,165.7,10.24372776]
[1749624074240,10.24372776,165.72,165.68,18.64964886]
[1749624074559,26.0,165.79,165.68,28.89337662]
[1749624074756,10.24372776,165.73,165.68,28.89337662]
[1749624076037,10.24372776,165.75,165.7,10.24372776]
[1749624076754,10.24372776,165.74,165.69,10.24372776]
[1749624076938,10.24372776,165.74,165.68,28.89337662]
[1749624077752,10.24372776,165.73,165.68,28.89337662]
[1749624078064,10.24372776,165.76,165.68,18.64964886]
[1749624078268,10.24372776,165.72,165.68,18.64964886]
[1749624079467,10.24372776,165.73,165.66,18.64964886]
[1749624079655,10.24372776,165.73,165.68,10.24372776]
[1749624080446,10.24372776,165.72,165.66,18.64964886]
[1749624080648,10.24372776,165.69,165.66,18.64964886]
[1749624081260,10.24372776,165.7,165.66,18.64964886]
[1749624082975,10.24372776,165.69,165.66,18.64964886]
[1749624083690,10.24372776,165.7,165.66,18.64964886]
[1749624088576,10.24372776,165.69,165.64,11.80362776]
[1749624088785,10.24372776,165.68,165.63,36.24372776]
[1749624088971,10.24372776,165.68,165.64,18.64964886]
[1749624089662,10.24372776,165.69,165.64,28.89337662]
[1749624090677,10.24372776,165.68,165.64,18.64964886]
[1749624095471,10.24372776,165.7,165.65,10.24372776]
[1749624095779,10.24372776,165.74,165.68,10.24372776]
[1749624095971,7.8655,165.78,165.7,10.24372776]
[1749624095972,5.44,165.76,165.7,10.24372776]
[1749624096179,15.68372776,165.76,165.71,10.24372776]
[1749624096357,15.68372776,165.76,165.69,28.89337662]
[1749624096358,10.24372776,165.74,165.69,28.89337662]
[1749624097282,10.24372776,165.73,165.69,18.64964886]
[1749624098488,10.24372776,165.74,165.69,28.89337662]
[1749624098982,10.24372776,165.75,165.7,10.24372776]
[1749624099186,5.44,165.76,165.7,10.24372776]
[1749624099387,10.24372776,165.75,165.7,10.24372776]
[1749624099886,5.44,165.76,165.7,10.24372776]
[1749624100096,10.24372776,165.75,165.7,10.24372776]
[1749624100865,10.24372776,165.75,165.68,18.64964886]
[1749624101074,10.24372776,165.75,165.7,10.24372776]
[1749624102585,10.24372776,165.73,165.68,28.89337662]
[1749624103269,10.24372776,165.74,165.69,10.24372776]
[1749624103672,10.24372776,165.71,165.67,115.9]
[1749624103891,10.24372776,165.7,165.67,26.0]
[1749624104576,10.24372776,165.69,165.66,18.64964886]
[1749624105999,26.0,165.73,165.66,18.64964886]
[1749624106193,10.24372776,165.7,165.66,18.64964886]
[1749624107382,15.68372776,165.76,165.68,18.64964886]
[1749624107383,10.24372776,165.72,165.68,18.64964886]
[1749624107603,10.24372776,165.7,165.65,10.24372776]
[1749624107904,10.24372776,165.69,165.66,18.64964886]
[1749624108107,10.24372776,165.69,165.63,27.6665]
[1749624108316,10.24372776,165.66,165.64,18.64964886]
[1749624109081,10.24372776,165.67,165.64,18.64964886]
[1749624110290,10.24372776,165.66,165.6,6.4786]
[1749624110489,10.24372776,165.64,165.6,18.64964886]
[1749624111103,10.24372776,165.63,165.6,18.64964886]
[1749624112402,10.24372776,165.62,165.6,18.64964886]
[1749624112592,10.24372776,165.61,165.55,32.64517736]
[1749624112790,10.24372776,165.61,165.58,26.0]
[1749624112986,10.24372776,165.6,165.58,26.0]
[1749624114108,10.24372776,165.62,165.59,26.0]
[1749624114688,10.24372776,165.61,165.59,26.0]
[1749624115313,5.44,165.66,165.58,26.0]
[1749624115611,10.24372776,165.62,165.59,26.0]
[1749624118298,10.24372776,165.62,165.58,26.0]
[1749624118501,10.24372776,165.61,165.59,26.0]
[1749624118709,10.24372776,165.6,165.55,53.79337662]
[1749624118909,10.24372776,165.61,165.59,26.0]
[1749624119217,10.24372776,165.6,165.55,18.64964886]
[1749624119396,10.24372776,165.58,165.57,26.0]
[1749624120402,10.24372776,165.59,165.57,26.0]
[1749624121019,7.712,165.65,165.58,18.64964886]
[1749624121196,10.24372776,165.62,165.58,18.64964886]
[1749624121398,10.24372776,165.61,165.58,18.64964886]
[1749624122526,10.24372776,165.6,165.56,26.0]
[1749624122822,10.24372776,165.58,165.55,18.64964886]
[1749624123001,10.24372776,165.57,165.55,18.64964886]
[1749624123730,10.24372776,165.58,165.55,18.64964886]
[1749624124106,26.0,165.64,165.55,18.64964886]
[1749624124107,5.44,165.64,165.57,18.64964886]
[1749624124306,10.24372776,165.61,165.55,26.0]
[1749624124529,5.44,165.64,165.55,18.64964886]
[1749624124709,10.24372776,165.6,165.55,28.89337662]
[1749624125110,10.24372776,165.62,165.57,10.24372776]
[1749624126919,5.44,165.64,165.6,28.89337662]
[1749624127306,5.44,165.64,165.62,28.89337662]
[1749624127508,5.44,165.64,165.63,28.89337662]
[1749624127820,5.44,165.64,165.63,18.64964886]
[1749624128218,10.24372776,165.67,165.63,18.64964886]
[1749624129615,10.24372776,165.66,165.63,18.64964886]
[1749624131226,26.0,165.69,165.6,89.9]
[1749624131227,10.24372776,165.64,165.6,89.9]
[1749624131428,10.24372776,165.68,165.6,89.9]
[1749624131429,10.24372776,165.61,165.6,89.9]
[1749624131617,10.24372776,165.61,165.58,18.64964886]
[1749624132543,10.24372776,165.62,165.57,11.81362776]
[1749624133832,10.24372776,165.63,165.57,11.81362776]
[1749624134032,10.24372776,165.63,165.58,10.24372776]
[1749624136330,26.0,165.62,165.58,10.24372776]
[1749624137018,26.0,165.64,165.58,10.24372776]
[1749624137208,10.24372776,165.63,165.58,10.24372776]
[1749624137825,36.24372776,165.64,165.58,10.24372776]
[1749624138213,26.0,165.64,165.6,18.64964886]
[1749624138425,36.24372776,165.64,165.6,18.64964886]
[1749624138821,26.0,165.62,165.6,18.64964886]
[1749624139026,26.0,165.64,165.6,10.24372776]
[1749624140939,1.6017,165.7,165.62,10.24372776]
[1749624141120,10.24372776,165.68,165.63,10.24372776]
[1749624141534,10.24372776,165.67,165.62,10.24372776]
[1749624142013,10.24372776,165.67,165.61,28.89337662]
[1749624142647,10.24372776,165.67,165.62,10.24372776]
[1749624143941,10.24372776,165.67,165.61,18.64964886]
[1749624144242,10.24372776,165.62,165.59,18.64964886]
[1749624144622,10.24372776,165.63,165.59,18.64964886]
[1749624146342,10.24372776,165.62,165.58,18.64964886]
[1749624146538,10.24372776,165.61,165.58,18.64964886]
[1749624146937,10.24372776,165.62,165.58,18.64964886]
[1749624147840,10.24372776,165.63,165.58,18.64964886]
[1749624148945,10.24372776,165.63,165.58,28.89337662]
[1749624150260,10.24372776,165.63,165.58,18.64964886]
[1749624150432,10.24372776,165.63,165.58,28.89337662]
[1749624151240,10.24372776,165.63,165.58,18.64964886]
[1749624151442,10.24372776,165.64,165.59,10.24372776]
[1749624152065,1.5757,165.67,165.6,10.24372776]
[1749624152231,10.24372776,165.66,165.61,18.64964886]
[1749624152551,10.24372776,165.65,165.61,18.64964886]
[1749624152952,10.24372776,165.66,165.61,10.24372776]
[1749624153752,10.24372776,165.65,165.61,18.64964886]
[1749624154945,10.24372776,165.66,165.61,18.64964886]
[1749624157457,10.24372776,165.65,165.61,18.64964886]
[1749624159748,26.0,165.68,165.61,18.64964886]
[1749624159955,10.24372776,165.66,165.61,10.24372776]
[1749624162060,10.24372776,165.65,165.59,18.64964886]
[1749624162246,10.24372776,165.62,165.59,18.64964886]
[1749624162446,10.24372776,165.63,165.59,18.64964886]
[1749624162964,36.24372776,165.68,165.59,18.64964886]
[1749624163148,10.24372776,165.65,165.61,18.64964886]
[1749624163346,10.24372776,165.66,165.61,28.89337662]
[1749624165169,26.0,165.68,165.62,10.24372776]
[1749624165344,13.3791,165.71,165.63,10.24372776]
[1749624165345,10.24372776,165.69,165.63,10.24372776]
[1749624165545,10.24372776,165.69,165.64,10.24372776]
[1749624165869,11.7755,165.71,165.66,28.89337662]
[1749624165870,5.44,165.71,165.66,28.89337662]
[1749624166036,5.44,165.71,165.67,10.24372776]
[1749624166236,5.44,165.71,165.68,10.24372776]
[1749624167742,5.44,165.71,165.7,10.24372776]
[1749624167953,5.44,165.71,165.69,10.24372776]
[1749624171649,5.44,165.71,165.7,10.24372776]
[1749624172363,5.44,165.71,165.69,10.24372776]
[1749624173954,5.44,165.71,165.7,10.24372776]